fUST/lending_fUST_20250908
["ID","MTS","AMOUNT","RATE_DAILY","PERIOD"]
[384311546,1757332250192,-480.0,0.00014794,2]
[384311547,1757332250201,-480.0,0.00014794,2]
[384311548,1757332250211,-500.0,0.00014795,2]
[384311549,1757332250221,-603.25611584,0.00014806,2]
[384311550,1757332250231,-160.0,0.00014915,2]
[384311551,1757332250240,-720.0,0.00014975,2]
[384311552,1757332250250,-500.0,0.00014984,2]
[384311553,1757332250259,-160.0,0.00015,2]
[384311554,1757332250268,-10706.42934264,0.00015,2]
[384311555,1757332250277,-513.09112401,0.00015047,2]
[384311556,1757332250287,-203.3243414,0.00015068,2]
[384311557,1757332250297,-480.0,0.00015068,2]
[384311558,1757332250307,-480.0,0.00015068,2]
[384311559,1757332250316,-488.8,0.00015068,2]
[384311560,1757332250325,-493.28,0.00015068,2]
[384311561,1757332250334,-480.0,0.00015068,2]
[384311562,1757332250343,-480.0,0.00015068,2]
[384311563,1757332250352,-480.0,0.00015068,2]
[384311564,1757332250362,-573.92,0.00015068,2]
[384311565,1757332250371,-493.71190571,0.00015068,2]
[384311566,1757332250379,-480.0,0.00015068,2]
[384311567,1757332250389,-428.6,0.00015068,2]
[384311568,1757332250398,-480.0,0.00015068,2]
[384311569,1757332250408,-1161.48,0.00015068,2]
[384311570,1757332250417,-779.28,0.00015068,2]
[384311571,1757332250426,-728.77,0.00015068,2]
[384311572,1757332250436,-353.02,0.00015068,2]
[384311573,1757332250445,-612.29,0.00015068,2]
[384311574,1757332250454,-273.45,0.00015068,2]
[384311575,1757332250464,-480.0,0.00015068,2]
[384311576,1757332250473,-592.32,0.00015068,2]
[384311577,1757332250483,-166.19188371,0.00015068,2]
[384311578,1757332250493,-2223.23,0.00015068,2]
[384311579,1757332250502,-480.0,0.00015068,2]
[384311580,1757332250511,-407.36,0.00015068,2]
[384311581,1757332250521,-480.0,0.00015068,2]
[384311582,1757332250530,-498.82,0.00015068,2]
[384311583,1757332250540,-480.0,0.00015068,2]
[384311584,1757332250550,-480.0,0.00015068,2]
[384311585,1757332250559,-480.0,0.00015068,2]
[384311586,1757332250568,-480.0,0.00015068,2]
[384311587,1757332250578,-480.0,0.00015068,2]
[384311588,1757332250588,-440.89,0.00015068,2]
[384311589,1757332250597,-480.0,0.00015068,2]
[384311590,1757332250606,-582.95,0.00015068,2]
[384311591,1757332250616,-480.0,0.00015068,2]
[384311592,1757332250625,-2018.68,0.00015068,2]
[384311593,1757332250634,-480.0,0.00015068,2]
[384311594,1757332250644,-480.0,0.00015068,2]
[384311595,1757332250653,-480.0,0.00015068,2]
[384311596,1757332250663,-915.55,0.00015068,2]
[384311597,1757332250672,-490.95943524,0.00015068,2]
[384311598,1757332250681,-480.0,0.00015068,2]
[384311599,1757332250691,-480.0,0.00015068,2]
[384311600,1757332250700,-480.0,0.00015068,2]
[384311601,1757332250709,-1500.0,0.00015068,2]
[384311602,1757332250718,-1500.0,0.00015068,2]
[384311603,1757332250728,-288.94226069,0.00015068,2]
[384311604,1757332250738,-557.335555,0.00015068,2]
[384311605,1757332250747,-767.63920648,0.00015201,2]
[384311606,1757332250756,-500.0,0.00015258,2]
[384311607,1757332250766,-336.54801358,0.00015336,2]
[384311608,1757332250775,-1000.0,0.00015342,2]
[384311609,1757332250785,-1000.0,0.00015342,2]
[384311610,1757332250795,-480.0,0.00015342,2]
[384311611,1757332250804,-617.4,0.00015342,2]
[384311612,1757332250817,-480.0,0.00015342,2]
[384311613,1757332250826,-480.0,0.00015342,2]
[384311614,1757332250836,-1161.48,0.00015342,2]
[384311615,1757332250845,-779.28,0.00015342,2]
[384311616,1757332250855,-728.77,0.00015342,2]
[384311617,1757332250864,-612.29,0.00015342,2]
[384311618,1757332250873,-480.0,0.00015342,2]
[384311619,1757332250884,-592.32,0.00015342,2]
[384311620,1757332250894,-2223.23,0.00015342,2]
[384311621,1757332250903,-344.46,0.00015342,2]
[384311623,1757332250913,-480.0,0.00015342,2]
[384311625,1757332250922,-498.82,0.00015342,2]
[384311627,1757332250931,-480.0,0.00015342,2]
[384311628,1757332250940,-480.0,0.00015342,2]
[384311629,1757332250949,-480.0,0.00015342,2]
[384311630,1757332250958,-344.86,0.00015342,2]
[384311631,1757332250968,-480.0,0.00015342,2]
[384311632,1757332250977,-582.95,0.00015342,2]
[384311633,1757332250986,-252.67,0.00015342,2]
[384311634,1757332250995,-2018.68,0.00015342,2]
[384311635,1757332251005,-470.17,0.00015342,2]
[384311636,1757332251015,-280.06,0.00015342,2]
[384311637,1757332251025,-454.28,0.00015342,2]
[384311638,1757332251034,-915.55,0.00015342,2]
[384311639,1757332251044,-480.0,0.00015342,2]
[384311640,1757332251055,-480.0,0.00015342,2]
[384311641,1757332251064,-480.0,0.00015342,2]
[384311642,1757332251074,-151.0,0.000154,2]
[384311643,1757332251084,-409.0,0.00015441,2]
[384311644,1757332251093,-967.35717929,0.00015451,2]
[384311645,1757332251103,-260.0,0.00015463,2]
[384311646,1757332251113,-500.0,0.00015532,2]
[384311647,1757332251123,-1487.4681399,0.00015538,2]
[384311648,1757332251132,-500.0,0.00015586,2]
[384311649,1757332251142,-3067.48626908,0.00015606,2]
[384311650,1757332251151,-480.0,0.00015616,2]
[384311651,1757332251160,-480.0,0.00015616,2]
[384311652,1757332251169,-1161.48,0.00015616,2]
[384311653,1757332251179,-779.28,0.00015616,2]
[384311654,1757332251188,-728.77,0.00015616,2]
[384311655,1757332251198,-612.29,0.00015616,2]
[384311656,1757332251208,-480.0,0.00015616,2]
[384311657,1757332251217,-592.32,0.00015616,2]
[384311658,1757332251227,-2223.23,0.00015616,2]
[384311659,1757332251236,-480.0,0.00015616,2]
[384311660,1757332251246,-498.82,0.00015616,2]
[384311661,1757332251255,-480.0,0.00015616,2]
[384311662,1757332251264,-516.45,0.00015616,2]
[384311663,1757332251274,-480.0,0.00015616,2]
[384311664,1757332251283,-480.0,0.00015616,2]
[384311665,1757332251293,-582.95,0.00015616,2]
[384311666,1757332251303,-2018.68,0.00015616,2]
[384311667,1757332251312,-915.55,0.00015616,2]
[384311668,1757332251321,-480.0,0.00015616,2]
[384311669,1757332251331,-480.0,0.00015616,2]
[384311670,1757332251340,-480.0,0.00015616,2]
[384311671,1757332251349,-2000.0,0.00015616,2]
[384311672,1757332251359,-2000.0,0.00015616,2]
[384311673,1757332251368,-500.0,0.00015806,2]
[384311674,1757332251378,-1500.0,0.0001589,2]
[384311675,1757332251388,-1086.54967329,0.0001589,2]
[384311676,1757332251398,-480.0,0.0001589,2]
[384311677,1757332251407,-480.0,0.0001589,2]
[384311678,1757332251417,-1161.48,0.0001589,2]
[384311679,1757332251426,-779.28,0.0001589,2]
[384311680,1757332251436,-728.77,0.0001589,2]
[384311681,1757332251446,-612.29,0.0001589,2]
[384311682,1757332251456,-480.0,0.0001589,2]
[384311683,1757332251466,-592.32,0.0001589,2]
[384311684,1757332251476,-2223.23,0.0001589,2]
[384311685,1757332251486,-480.0,0.0001589,2]
[384311686,1757332251496,-498.82,0.0001589,2]
[384311687,1757332251505,-480.0,0.0001589,2]
[384311688,1757332251515,-434.63,0.0001589,2]
[384311689,1757332251524,-538.6,0.0001589,2]
[384311690,1757332251534,-582.95,0.0001589,2]
[384311691,1757332251543,-2018.68,0.0001589,2]
[384311692,1757332251553,-915.55,0.0001589,2]
[384311693,1757332251563,-480.0,0.0001589,2]
[384311694,1757332251573,-493.96331499,0.0001589,2]
[384311695,1757332251678,-480.0,0.0001589,2]
[384311696,1757332251688,-483.283156,0.00016,2]
[384311697,1757332251697,-360.0,0.00016011,2]
[384311698,1757332251706,-500.0,0.00016014,2]
[384311699,1757332251715,-331.8990042,0.00016023,2]
[384311700,1757332251725,-2351.0,0.00016039,2]
[384311701,1757332251734,-587.0,0.00016041,2]
[384311702,1757332251744,-500.0,0.0001608,2]
[384311703,1757332251755,-1250.0,0.00016135,2]
[384311704,1757332251765,-500.0,0.00016157,2]
[384311705,1757332251775,-500.0,0.00016157,2]
[384311706,1757332251785,-619.86,0.00016164,2]
[384311707,1757332251794,-480.0,0.00016164,2]
[384311708,1757332251803,-1161.48,0.00016164,2]
[384311709,1757332251816,-779.28,0.00016164,2]
[384311710,1757332251826,-728.77,0.00016164,2]
[384311711,1757332251835,-612.29,0.00016164,2]
[384311712,1757332251844,-453.3896781,0.00016164,2]
[384311713,1757332251854,-592.32,0.00016164,2]
[384311714,1757332251865,-2223.23,0.00016164,2]
[384311715,1757332251875,-480.0,0.00016164,2]
[384311716,1757332251886,-498.82,0.00016164,2]
[384311717,1757332251897,-480.0,0.00016164,2]
[384311718,1757332251907,-582.95,0.00016164,2]
[384311719,1757332251916,-2018.68,0.00016164,2]
[384311720,1757332251926,-915.55,0.00016164,2]
[384311721,1757332251936,-480.0,0.00016164,2]
[384311722,1757332251945,-480.0,0.00016164,2]
[384311723,1757332251954,-1000.0,0.00016164,2]
[384311724,1757332251964,-2500.0,0.00016164,2]
[384311725,1757332251973,-16060.635461,0.0001623,2]
[384311726,1757332251982,-219.613,0.0001623,2]
[384311727,1757332251992,-178.39729066,0.0001623,2]
[384311728,1757332252001,-58056.3411295,0.000163,2]
[384311729,1757332252011,-161.45523219,0.00016354,2]
[384311730,1757332252020,-500.0,0.00016365,2]
[384311731,1757332252030,-596.31406564,0.00016411,2]
[384311732,1757332252039,-2000.0,0.00016438,2]
[384311733,1757332252049,-480.0,0.00016438,2]
[384311734,1757332252058,-1161.48,0.00016438,2]
[384311735,1757332252067,-779.28,0.00016438,2]
[384311736,1757332252077,-728.77,0.00016438,2]
[384311737,1757332252086,-612.29,0.00016438,2]
[384311738,1757332252096,-592.32,0.00016438,2]
[384311739,1757332252106,-2223.23,0.00016438,2]
[384311740,1757332252115,-480.0,0.00016438,2]
[384311741,1757332252124,-498.82,0.00016438,2]
[384311742,1757332252134,-480.0,0.00016438,2]
[384311743,1757332252143,-582.95,0.00016438,2]
[384311744,1757332252153,-2018.68,0.00016438,2]
[384311745,1757332252162,-915.55,0.00016438,2]
[384311746,1757332252172,-480.0,0.00016438,2]
[384311747,1757332252181,-480.0,0.00016438,2]
[384311748,1757332252191,-500.0,0.0001647,2]
[384311749,1757332252200,-864.0,0.00016473,2]
[384311750,1757332252210,-500.0,0.00016486,2]
[384311751,1757332252219,-500.0,0.00016486,2]
[384311752,1757332252228,-500.0,0.00016486,2]
[384311753,1757332252238,-500.0,0.00016486,2]
[384311754,1757332252248,-500.0,0.00016486,2]
[384311755,1757332252258,-500.0,0.00016486,2]
[384311756,1757332252267,-500.0,0.00016486,2]
[384311757,1757332252276,-500.0,0.00016486,2]
[384311758,1757332252285,-591.03125066,0.0001654,2]
[384311759,1757332252295,-500.0,0.00016553,2]
[384311760,1757332252304,-500.0,0.00016553,2]
[384311761,1757332252314,-500.0,0.00016553,2]
[384311762,1757332252323,-460.0,0.00016559,2]
[384311763,1757332252333,-1000.0,0.00016562,2]
[384311764,1757332252342,-500.0,0.00016607,2]
[384311765,1757332252352,-500.0,0.00016607,2]
[384311766,1757332252361,-500.0,0.00016607,2]
[384311767,1757332252371,-500.0,0.00016607,2]
[384311768,1757332252380,-500.0,0.00016607,2]
[384311769,1757332252389,-500.0,0.00016607,2]
[384311770,1757332252399,-500.0,0.00016643,2]
[384311771,1757332252408,-500.0,0.00016643,2]
[384311772,1757332252417,-500.0,0.00016643,2]
[384311773,1757332252427,-500.0,0.00016643,2]
[384311774,1757332252437,-500.0,0.00016643,2]
[384311775,1757332252446,-500.0,0.00016643,2]
[384311776,1757332252456,-500.0,0.00016643,2]
[384311777,1757332252465,-500.0,0.00016643,2]
[384311778,1757332252474,-500.0,0.00016643,2]
[384311779,1757332252484,-500.0,0.00016643,2]
[384311780,1757332252494,-500.0,0.00016643,2]
[384311781,1757332252503,-500.0,0.00016643,2]
[384311782,1757332252513,-500.0,0.00016643,2]
[384311783,1757332252524,-622.39326259,0.00016643,2]
[384311784,1757332252533,-500.0,0.00016643,2]
[384311785,1757332252542,-500.0,0.00016643,2]
[384311786,1757332252552,-500.0,0.00016643,2]
[384311787,1757332252562,-500.0,0.00016643,2]
[384311788,1757332252572,-1000.0,0.00016705,2]
[384311789,1757332252582,-1000.0,0.00016705,2]
[384311790,1757332252592,-480.0,0.00016712,2]
[384311791,1757332252601,-1161.48,0.00016712,2]
[384311792,1757332252611,-779.28,0.00016712,2]
[384311793,1757332252620,-728.77,0.00016712,2]
[384311794,1757332252630,-612.29,0.00016712,2]
[384311795,1757332252639,-592.32,0.00016712,2]
[384311796,1757332252649,-2223.23,0.00016712,2]
[384311797,1757332252659,-480.0,0.00016712,2]
[384311798,1757332252669,-498.82,0.00016712,2]
[384311799,1757332252678,-480.0,0.00016712,2]
[384311800,1757332252688,-582.95,0.00016712,2]
[384311801,1757332252698,-2018.68,0.00016712,2]
[384311802,1757332252707,-915.55,0.00016712,2]
[384311803,1757332252717,-480.0,0.00016712,2]
[384311804,1757332252726,-480.0,0.00016712,2]
[384311805,1757332252736,-246.38443221,0.00016712,2]
[384311806,1757332252746,-3583.6121625,0.00016736,2]
[384311807,1757332252756,-22011.22264209,0.00016749,2]
[384311808,1757332252767,-168.0,0.00016778,2]
[384311809,1757332252778,-168.0,0.00016982,2]
[384311810,1757332252788,-2500.0,0.00016986,2]
[384311811,1757332252798,-480.0,0.00016986,2]
[384311812,1757332252808,-1161.48,0.00016986,2]
[384311813,1757332252822,-779.28,0.00016986,2]
[384311814,1757332252832,-728.77,0.00016986,2]
[384311815,1757332252841,-612.29,0.00016986,2]
[384311816,1757332252850,-592.32,0.00016986,2]
[384311817,1757332252861,-2223.23,0.00016986,2]
[384311818,1757332252871,-480.0,0.00016986,2]
[384311819,1757332252882,-498.82,0.00016986,2]
[384311820,1757332252891,-598.23,0.00016986,2]
[384311821,1757332252902,-582.95,0.00016986,2]
[384311822,1757332252911,-2018.68,0.00016986,2]
[384311823,1757332252921,-915.55,0.00016986,2]
[384311824,1757332252930,-480.0,0.00016986,2]
[384311825,1757332252939,-480.0,0.00016986,2]
[384311826,1757332252949,-1000.0,0.00017018,2]
[384311827,1757332252958,-1000.0,0.00017034,2]
[384311828,1757332252967,-754.89018701,0.00017034,2]
[384311829,1757332252977,-1000.0,0.00017034,2]
[384311830,1757332252987,-1000.0,0.00017034,2]
[384311831,1757332252997,-1000.0,0.00017034,2]
[384311832,1757332253007,-1000.0,0.00017034,2]
[384311833,1757332253016,-1070.30542376,0.00017034,2]
[384311834,1757332253025,-1000.0,0.00017034,2]
[384311835,1757332253035,-168.0,0.0001709,2]
[384311836,1757332253044,-1000.0,0.00017101,2]
[384311837,1757332253053,-560.0,0.00017107,2]
[384311838,1757332253062,-1500.0,0.0001711,2]
[384311839,1757332253071,-1000.0,0.00017155,2]
[384311840,1757332253081,-904.6730517,0.00017155,2]
[384311841,1757332253091,-1000.0,0.00017155,2]
[384311842,1757332253101,-1000.0,0.00017155,2]
[384311843,1757332253110,-967.64828555,0.00017155,2]
[384311844,1757332253119,-1000.0,0.00017155,2]
[384311845,1757332253129,-696.01094553,0.00017191,2]
[384311846,1757332253139,-1000.0,0.00017191,2]
[384311847,1757332253148,-1000.0,0.00017191,2]
[384311848,1757332253159,-1000.0,0.00017191,2]
[384311849,1757332253170,-1000.0,0.00017191,2]
[384311850,1757332253180,-1000.0,0.00017191,2]
[384311851,1757332253191,-1000.0,0.00017191,2]
[384311852,1757332253202,-1000.0,0.00017191,2]
[384311853,1757332253212,-1000.0,0.00017191,2]
[384311854,1757332253222,-1000.0,0.00017191,2]
[384311855,1757332253231,-1000.0,0.00017191,2]
[384311856,1757332253241,-1000.0,0.00017191,2]
[384311857,1757332253251,-1000.0,0.00017191,2]
[384311858,1757332253262,-613.4327225,0.00017191,2]
[384311859,1757332253274,-1000.0,0.00017191,2]
[384311860,1757332253283,-941.18174133,0.00017191,2]
[384311861,1757332253294,-1000.0,0.00017191,2]
[384311862,1757332253305,-168.0,0.0001722,2]
[384311863,1757332253316,-168.0,0.00017234,2]
[384311864,1757332253325,-1500.0,0.00017253,2]
[384311865,1757332253334,-1500.0,0.00017253,2]
[384311866,1757332253344,-480.0,0.0001726,2]
[384311867,1757332253353,-1161.48,0.0001726,2]
[384311868,1757332253363,-779.28,0.0001726,2]
[384311869,1757332253372,-728.77,0.0001726,2]
[384311870,1757332253381,-612.29,0.0001726,2]
[384311871,1757332253391,-592.32,0.0001726,2]
[384311872,1757332253400,-2223.23,0.0001726,2]
[384311873,1757332253410,-480.0,0.0001726,2]
[384311874,1757332253419,-498.82,0.0001726,2]
[384311875,1757332253428,-582.95,0.0001726,2]
[384311876,1757332253438,-2018.68,0.0001726,2]
[384311877,1757332253447,-915.55,0.0001726,2]
[384311878,1757332253456,-480.0,0.0001726,2]
[384311879,1757332253466,-480.0,0.0001726,2]
[384311880,1757332253476,-3000.0,0.00017534,2]
[384311881,1757332253486,-480.0,0.00017534,2]
[384311882,1757332253495,-1161.48,0.00017534,2]
[384311883,1757332253505,-779.28,0.00017534,2]
[384311884,1757332253514,-728.77,0.00017534,2]
[384311885,1757332253523,-612.29,0.00017534,2]
[384311886,1757332253533,-592.32,0.00017534,2]
[384311887,1757332253542,-2223.23,0.00017534,2]
[384311888,1757332253552,-480.0,0.00017534,2]
[384311889,1757332253561,-498.82,0.00017534,2]
[384311890,1757332253571,-582.95,0.00017534,2]
[384311891,1757332253579,-2018.68,0.00017534,2]
[384311892,1757332253589,-915.55,0.00017534,2]
[384311893,1757332253598,-480.0,0.00017534,2]
[384311894,1757332253607,-480.0,0.00017534,2]
[384311895,1757332253616,-500.0,0.00017566,2]
[384311896,1757332253625,-1179.20087532,0.00017582,2]
[384311897,1757332253634,-1500.0,0.00017582,2]
[384311898,1757332253644,-1377.21709229,0.00017582,2]
[384311899,1757332253653,-729.49823432,0.00017582,2]
[384311900,1757332253662,-1500.0,0.00017582,2]
[384311901,1757332253672,-1500.0,0.00017582,2]
[384311902,1757332253681,-769.0,0.00017583,2]
[384311903,1757332253690,-823.0,0.00017585,2]
[384311904,1757332253699,-168.0,0.0001763,2]
[384311905,1757332253709,-1500.0,0.00017649,2]
[384311906,1757332253718,-967.35717929,0.00017653,2]
[384311907,1757332253728,-660.0,0.00017655,2]
[384311908,1757332253738,-2000.0,0.00017658,2]
[384311909,1757332253747,-168.0,0.00017681,2]
[384311910,1757332253756,-401.58699301,0.00017703,2]
[384311911,1757332253766,-1518.236725,0.00017703,2]
[384311912,1757332253775,-1500.0,0.00017703,2]
[384311913,1757332253784,-1500.0,0.00017703,2]
[384311914,1757332253793,-190.74339174,0.00017739,2]
[384311915,1757332253802,-571.30130751,0.00017739,2]
[384311916,1757332253814,-1500.0,0.00017739,2]
[384311917,1757332253827,-1500.0,0.00017739,2]
[384311918,1757332253836,-1500.0,0.00017739,2]
[384311919,1757332253846,-1500.0,0.00017739,2]
[384311920,1757332253936,-1500.0,0.00017739,2]
[384311921,1757332253955,-1500.0,0.00017739,2]
[384311922,1757332253964,-1500.0,0.00017739,2]
[384311923,1757332253975,-797.19647253,0.00017739,2]
[384311924,1757332253985,-1500.0,0.00017739,2]
[384311925,1757332253995,-1500.0,0.00017739,2]
[384311926,1757332254004,-1260.02176344,0.00017739,2]
[384311927,1757332254013,-1155.10760021,0.00017739,2]
[384311928,1757332254023,-1112.364251,0.00017801,2]
[384311929,1757332254031,-2000.0,0.00017801,2]
[384311930,1757332254041,-168.0,0.00017802,2]
[384311931,1757332254050,-480.0,0.00017808,2]
[384311932,1757332254061,-1161.48,0.00017808,2]
[384311933,1757332254070,-779.28,0.00017808,2]
[384311934,1757332254080,-728.77,0.00017808,2]
[384311935,1757332254089,-612.29,0.00017808,2]
[384311936,1757332254100,-592.32,0.00017808,2]
[384311937,1757332254109,-2223.23,0.00017808,2]
[384311938,1757332254119,-480.0,0.00017808,2]
[384311939,1757332254130,-498.82,0.00017808,2]
[384311940,1757332254140,-582.95,0.00017808,2]
[384311941,1757332254150,-2018.68,0.00017808,2]
[384311942,1757332254159,-915.55,0.00017808,2]
[384311943,1757332254168,-480.0,0.00017808,2]
[384311944,1757332254179,-480.0,0.00017808,2]
[384311945,1757332254188,-168.0,0.00017865,2]
[384311946,1757332254197,-168.0,0.000179,2]
[384311947,1757332254207,-168.0,0.00017927,2]
[384311948,1757332254216,-168.0,0.00017952,2]
[384311949,1757332254225,-335.0,0.00017962,2]
[384311950,1757332254234,-26964.39752395,0.00018,2]
[384311951,1757332254243,-9576.01733985,0.00018,2]
[384311952,1757332254253,-11960.0,0.00018,2]
[384311953,1757332254262,-29491.19391057,0.00018,2]
[384311954,1757332254271,-36436.35353414,0.00018,21]
[384311955,1757332254281,-168.0,0.00018003,2]
[384311956,1757332254290,-168.0,0.00018029,2]
[384311957,1757332254300,-168.0,0.00018078,2]
[384311958,1757332254309,-179.87408814,0.0001808,2]
[384311959,1757332254319,-3500.0,0.00018082,2]
[384311960,1757332254329,-480.0,0.00018082,2]
[384311961,1757332254338,-1161.48,0.00018082,2]
[384311962,1757332254347,-779.28,0.00018082,2]
[384311963,1757332254356,-728.77,0.00018082,2]
[384311964,1757332254366,-612.29,0.00018082,2]
[384311965,1757332254376,-592.32,0.00018082,2]
[384311966,1757332254387,-2223.23,0.00018082,2]
[384311967,1757332254398,-480.0,0.00018082,2]
[384311968,1757332254407,-498.82,0.00018082,2]
[384311969,1757332254416,-582.95,0.00018082,2]
[384311970,1757332254425,-2018.68,0.00018082,2]
[384311971,1757332254435,-915.55,0.00018082,2]
[384311972,1757332254445,-480.0,0.00018082,2]
[384311973,1757332254454,-480.0,0.00018082,2]
[384311974,1757332254463,-1500.0,0.00018082,7]
[384311975,1757332254472,-5020.8898224,0.00018082,2]
[384311976,1757332254483,-1500.0,0.00018082,7]
[384311977,1757332254493,-1500.0,0.00018082,7]
[384311978,1757332254503,-1500.0,0.00018082,7]
[384311979,1757332254512,-1500.0,0.00018082,7]
[384311980,1757332254522,-1500.0,0.00018082,7]
[384311981,1757332254531,-1500.0,0.00018082,7]
[384311982,1757332254541,-1500.0,0.00018082,7]
[384311983,1757332254550,-1500.0,0.00018082,7]
[384311984,1757332254559,-1500.0,0.00018082,7]
[384311985,1757332254568,-205.3599,0.00018082,7]
[384311986,1757332254578,-530.71506861,0.0001809,7]
[384311987,1757332254587,-160.0,0.0001809,7]
[384311988,1757332254596,-10576.6745308,0.000181,7]
[384311989,1757332254605,-530.71506861,0.000181,7]
[384311990,1757332254615,-1000.0,0.0001812,2]
[384311991,1757332254624,-702.19643247,0.0001813,2]
[384311992,1757332254633,-2000.0,0.0001813,2]
[384311993,1757332254643,-2000.0,0.0001813,2]
[384311994,1757332254652,-416.0,0.00018155,2]
[384311995,1757332254661,-168.0,0.00018165,2]
[384311996,1757332254670,-1883.59635581,0.00018197,2]
[384311997,1757332254679,-760.0,0.00018203,2]
[384311998,1757332254688,-2500.0,0.00018206,2]
[384311999,1757332254697,-2000.0,0.00018251,2]
[384312000,1757332254707,-2000.0,0.00018251,2]
[384312001,1757332254716,-168.0,0.00018283,2]
[384312002,1757332254726,-2000.0,0.00018287,2]
[384312003,1757332254735,-642.13988616,0.00018287,2]
[384312004,1757332254743,-2000.0,0.00018287,2]
[384312005,1757332254752,-2000.0,0.00018287,2]
[384312006,1757332254760,-787.39338666,0.00018287,2]
[384312007,1757332254769,-2000.0,0.00018287,2]
[384312008,1757332254778,-2000.0,0.00018287,2]
[384312009,1757332254786,-1803.03606722,0.00018287,2]
[384312010,1757332254795,-1576.58405547,0.00018287,2]
[384312011,1757332254804,-2500.0,0.00018349,2]
[384312012,1757332254815,-480.0,0.00018356,2]
[384312013,1757332254828,-1161.48,0.00018356,2]
[384312014,1757332254836,-779.28,0.00018356,2]
[384312015,1757332254846,-728.77,0.00018356,2]
[384312016,1757332254854,-612.29,0.00018356,2]
[384312017,1757332254863,-592.32,0.00018356,2]
[384312018,1757332254872,-2223.23,0.00018356,2]
[384312019,1757332254881,-480.0,0.00018356,2]
[384312020,1757332254890,-498.82,0.00018356,2]
[384312021,1757332254899,-582.95,0.00018356,2]
[384312022,1757332254908,-2018.68,0.00018356,2]
[384312023,1757332254917,-915.55,0.00018356,2]
[384312024,1757332254926,-192.37044951,0.00018356,2]
[384312025,1757332254934,-320.21880911,0.00018356,2]
[384312026,1757332254942,-409.0,0.00018441,2]
[384312027,1757332254951,-557.335555,0.00018493,2]
[384312028,1757332254961,-168.0,0.00018535,2]
[384312029,1757332254969,-168.0,0.00018555,2]
[384312030,1757332254979,-168.0,0.00018584,2]
[384312031,1757332254988,-168.0,0.00018589,2]
[384312032,1757332254997,-4000.0,0.0001863,2]
[384312033,1757332255006,-265.81584302,0.0001863,2]
[384312034,1757332255016,-1161.48,0.0001863,2]
[384312035,1757332255024,-779.28,0.0001863,2]
[384312036,1757332255034,-728.77,0.0001863,2]
[384312037,1757332255043,-612.29,0.0001863,2]
[384312038,1757332255053,-592.32,0.0001863,2]
[384312039,1757332255062,-2223.23,0.0001863,2]
[384312040,1757332255071,-480.0,0.0001863,2]
[384312041,1757332255080,-498.82,0.0001863,2]
[384312042,1757332255088,-582.95,0.0001863,2]
[384312043,1757332255097,-2018.68,0.0001863,2]
[384312044,1757332255106,-915.55,0.0001863,2]
[384312045,1757332255115,-2500.0,0.00018677,2]
[384312046,1757332255123,-2500.0,0.00018677,2]
[384312047,1757332255132,-1000.0,0.000187,2]
[384312048,1757332255140,-1000.0,0.000187,2]